[Event "Early-Titled-Tuesday-Blitz-May-07-2024"]
[Site "Chess.com"]
[Date "2024.05.07"]
[Round "1"]
[White "GMKrikor"]
[Black "Lady_Nika"]
[Result "1-0"]
[WhiteElo "2855"]
[BlackElo "2484"]
[TimeControl "180+1"]
[EndTime "8:09:06 PDT"]
[Termination "GMKrikor won by resignation"]

1. Nf3 {[%clk 0:03:00.9]} 1... d5 {[%clk 0:02:58.4]} 2. c4 {[%clk 0:02:57.2]}
2... c6 {[%clk 0:02:58.3]} 3. d4 {[%clk 0:02:56.8]} 3... e6 {[%clk 0:02:54.4]}
4. Nc3 {[%clk 0:02:55.7]} 4... f5 {[%clk 0:02:54.3]} 5. Bf4 {[%clk 0:02:54.1]}
5... Nf6 {[%clk 0:02:54.5]} 6. e3 {[%clk 0:02:53.2]} 6... Bd6 {[%clk 0:02:54.6]}
7. Bd3 {[%clk 0:02:49.6]} 7... O-O {[%clk 0:02:52.6]} 8. O-O {[%clk 0:02:49.2]}
8... Ne4 {[%clk 0:02:52.8]} 9. Qc2 {[%clk 0:02:39.8]} 9... Qe7 {[%clk
0:02:51.2]} 10. Ne5 {[%clk 0:02:22.8]} 10... Nd7 {[%clk 0:02:49.6]} 11. Nxd7
{[%clk 0:02:12.3]} 11... Bxd7 {[%clk 0:02:49.5]} 12. Ne2 {[%clk 0:02:12.2]}
12... g5 {[%clk 0:02:37.6]} 13. Bxd6 {[%clk 0:02:07.3]} 13... Nxd6 {[%clk
0:02:37.9]} 14. Rae1 {[%clk 0:01:52.9]} 14... Rae8 {[%clk 0:02:16.1]} 15. f3
{[%clk 0:01:52.2]} 15... e5 {[%clk 0:02:06.4]} 16. c5 {[%clk 0:01:18.2]} 16...
Nc8 {[%clk 0:01:55.1]} 17. dxe5 {[%clk 0:01:16.4]} 17... Qxe5 {[%clk 0:01:54.9]}
18. Nd4 {[%clk 0:01:17]} 18... Ne7 {[%clk 0:01:51.7]} 19. Qb3 {[%clk 0:01:02.5]}
19... Bc8 {[%clk 0:01:48.1]} 20. Qc3 {[%clk 0:00:59.8]} 20... Ng6 {[%clk
0:01:44.9]} 21. b4 {[%clk 0:00:55.5]} 21... a6 {[%clk 0:01:44.4]} 22. a4 {[%clk
0:00:55.1]} 22... Qg7 {[%clk 0:01:25.1]} 23. b5 {[%clk 0:00:49.7]} 23... axb5
{[%clk 0:01:25.1]} 24. axb5 {[%clk 0:00:50.6]} 24... Ne5 {[%clk 0:01:12.7]} 25.
b6 {[%clk 0:00:47.7]} 25... Re7 {[%clk 0:00:57]} 26. Qc2 {[%clk 0:00:42.9]}
26... Qf6 {[%clk 0:00:24.7]} 27. Qd2 {[%clk 0:00:42.7]} 27... Ng6 {[%clk
0:00:16]} 28. Bc2 {[%clk 0:00:40]} 28... Nh4 {[%clk 0:00:15.3]} 29. Qf2 {[%clk
0:00:36.4]} 29... Rfe8 {[%clk 0:00:15.2]} 30. f4 {[%clk 0:00:33.7]} 30... g4
{[%clk 0:00:13.2]} 31. Bd3 {[%clk 0:00:28.1]} 31... Rf7 {[%clk 0:00:12.1]} 32.
Kh1 {[%clk 0:00:26.8]} 32... Ng6 {[%clk 0:00:11.9]} 33. Ra1 {[%clk 0:00:21.5]}
33... Kh8 {[%clk 0:00:11.5]} 34. Ra8 {[%clk 0:00:21.5]} 34... Ne7 {[%clk
0:00:11.3]} 35. Qb2 {[%clk 0:00:16.2]} 35... Rg8 {[%clk 0:00:10.7]} 36. g3
{[%clk 0:00:15.7]} 36... Rfg7 {[%clk 0:00:10.8]} 37. Rf2 {[%clk 0:00:13.9]}
37... h5 {[%clk 0:00:10.7]} 38. Nb3 {[%clk 0:00:14.1]} 38... Qh6 {[%clk
0:00:08.3]} 39. Qe5 {[%clk 0:00:12.3]} 39... h4 {[%clk 0:00:08]} 40. Kg1 {[%clk
0:00:12.9]} 40... Ng6 {[%clk 0:00:05.5]} 41. Qf6 {[%clk 0:00:11.7]} 41... Rf8
{[%clk 0:00:05.2]} 42. Qd4 {[%clk 0:00:10.7]} 42... Kg8 {[%clk 0:00:04.8]} 43.
Rg2 {[%clk 0:00:07.9]} 43... Rh7 {[%clk 0:00:04.8]} 44. Kf2 {[%clk 0:00:08.5]}
44... hxg3+ {[%clk 0:00:04.6]} 45. hxg3 {[%clk 0:00:08.9]} 45... Qh1 {[%clk
0:00:04.3]} 46. Bf1 {[%clk 0:00:09.6]} 46... Rh2 {[%clk 0:00:03.6]} 47. Rxh2
{[%clk 0:00:08.7]} 47... Qxh2+ {[%clk 0:00:03.8]} 48. Bg2 {[%clk 0:00:09.5]}
48... Qh7 {[%clk 0:00:03.4]} 49. Nc1 {[%clk 0:00:09.2]} 49... Qe7 {[%clk
0:00:03.1]} 50. Nd3 {[%clk 0:00:09.1]} 50... Re8 {[%clk 0:00:03]} 51. Bf1 {[%clk
0:00:09.4]} 51... Qh7 {[%clk 0:00:02.1]} 52. Bg2 {[%clk 0:00:09.4]} 52... Qe7
{[%clk 0:00:02.1]} 53. Rb8 {[%clk 0:00:08.3]} 53... Qh7 {[%clk 0:00:02.6]} 54.
Qf6 {[%clk 0:00:08.4]} 54... Qf7 {[%clk 0:00:02.2]} 55. Qxf7+ {[%clk 0:00:08.1]}
55... Kxf7 {[%clk 0:00:03.1]} 56. Nb2 {[%clk 0:00:05.1]} 56... Kg7 {[%clk
0:00:04]} 57. Na4 {[%clk 0:00:05.4]} 57... Kf7 {[%clk 0:00:04.1]} 58. Nc3 {[%clk
0:00:05]} 58... Ne7 {[%clk 0:00:04.4]} 59. Ne2 {[%clk 0:00:04.9]} 59... Ke6
{[%clk 0:00:04.8]} 60. Nd4+ {[%clk 0:00:05.4]} 60... Kf6 {[%clk 0:00:05.1]} 61.
Ra8 {[%clk 0:00:06.3]} 61... Kf7 {[%clk 0:00:05]} 62. Ra7 {[%clk 0:00:06.9]}
62... Ng6 {[%clk 0:00:05.1]} 63. Nxc6 {[%clk 0:00:07.1]} 63... Ne7 {[%clk
0:00:04]} 64. Nxe7 {[%clk 0:00:06]} 64... Rxe7 {[%clk 0:00:04.9]} 65. Bxd5+
{[%clk 0:00:06]} 65... Kf6 {[%clk 0:00:05.8]} 66. Bg2 {[%clk 0:00:04.5]} 66...
Rd7 {[%clk 0:00:06.1]} 67. c6 {[%clk 0:00:04.6]} 67... Rd2+ {[%clk 0:00:06.1]}
68. Kg1 {[%clk 0:00:05]} 68... bxc6 {[%clk 0:00:06]} 69. Rc7 {[%clk 0:00:05.5]}
69... Ba6 {[%clk 0:00:05.7]} 70. b7 {[%clk 0:00:05.6]} 70... Rb2 {[%clk
0:00:05.7]} 71. Bxc6 {[%clk 0:00:05.9]} 71... Rb1+ {[%clk 0:00:05.4]} 72. Kh2
{[%clk 0:00:06.2]} 72... Rb2+ {[%clk 0:00:05.8]} 73. Kg1 {[%clk 0:00:06.5]}
73... Rb1+ {[%clk 0:00:05.9]} 74. Kf2 {[%clk 0:00:07.3]} 74... Rf1+ {[%clk
0:00:06]} 75. Kg2 {[%clk 0:00:07.6]} 75... Rb1 {[%clk 0:00:06.6]} 76. Rc8 {[%clk
0:00:07.5]} 76... Bf1+ {[%clk 0:00:06.6]} 77. Kf2 {[%clk 0:00:06.8]} 77... Ba6
{[%clk 0:00:07.2]} 78. b8=Q {[%clk 0:00:06.8]} 78... Rf1+ {[%clk 0:00:06.6]} 79.
Kg2 {[%clk 0:00:06.9]} 1-0

[Event "Early-Titled-Tuesday-Blitz-May-07-2024"]
[Site "Chess.com"]
[Date "2024.05.07"]
[Round "1"]
[White "Anton_Demchenko"]
[Black "alpope"]
[Result "1/2-1/2"]
[WhiteElo "2921"]
[BlackElo "2522"]
[TimeControl "180+1"]
[EndTime "8:09:14 PDT"]
[Termination "Game drawn - insufficient material"]

1. e4 {[%clk 0:03:00.9]} 1... d6 {[%clk 0:02:58.8]} 2. d4 {[%clk 0:03:00.7]}
2... Nf6 {[%clk 0:02:59.1]} 3. Nc3 {[%clk 0:03:00.9]} 3... e5 {[%clk 0:02:59.8]}
4. dxe5 {[%clk 0:03:01.8]} 4... dxe5 {[%clk 0:03:00.4]} 5. Qxd8+ {[%clk
0:03:02]} 5... Kxd8 {[%clk 0:03:01.1]} 6. Bc4 {[%clk 0:03:02.5]} 6... Be6 {[%clk
0:03:00.9]} 7. Bxe6 {[%clk 0:03:02.2]} 7... fxe6 {[%clk 0:03:01.8]} 8. f3 {[%clk
0:02:56.9]} 8... Bd6 {[%clk 0:03:00.1]} 9. Nge2 {[%clk 0:02:54.5]} 9... Ke7
{[%clk 0:02:58.6]} 10. Nd1 {[%clk 0:02:39]} 10... a6 {[%clk 0:02:57]} 11. Nf2
{[%clk 0:02:38.3]} 11... b5 {[%clk 0:02:45.3]} 12. Be3 {[%clk 0:02:34.8]} 12...
Nc6 {[%clk 0:02:29.1]} 13. Nd3 {[%clk 0:02:32.2]} 13... Nb4 {[%clk 0:02:22]} 14.
Nxb4 {[%clk 0:02:32.1]} 14... Bxb4+ {[%clk 0:02:22.9]} 15. c3 {[%clk 0:02:32.9]}
15... Bd6 {[%clk 0:02:22.9]} 16. Rc1 {[%clk 0:02:22.2]} 16... Nd7 {[%clk
0:02:01.6]} 17. Kf2 {[%clk 0:02:07.8]} 17... Bc5 {[%clk 0:01:55.6]} 18. Rhd1
{[%clk 0:02:07.3]} 18... Bxe3+ {[%clk 0:01:53.9]} 19. Kxe3 {[%clk 0:02:08.2]}
19... Nb6 {[%clk 0:01:47]} 20. b3 {[%clk 0:02:03.4]} 20... Rhd8 {[%clk
0:01:46.5]} 21. h4 {[%clk 0:01:50]} 21... Rd6 {[%clk 0:01:43.7]} 22. Ng3 {[%clk
0:01:31.2]} 22... Rad8 {[%clk 0:01:39.8]} 23. Ke2 {[%clk 0:01:31.9]} 23... Nd7
{[%clk 0:01:20.6]} 24. Rxd6 {[%clk 0:01:24.3]} 24... cxd6 {[%clk 0:01:20.4]} 25.
Nf1 {[%clk 0:01:25]} 25... Rc8 {[%clk 0:01:17.2]} 26. Ne3 {[%clk 0:01:24.2]}
26... Nf6 {[%clk 0:01:16.7]} 27. g4 {[%clk 0:01:19]} 27... Nd7 {[%clk
0:01:11.1]} 28. h5 {[%clk 0:01:15.1]} 28... h6 {[%clk 0:01:07.5]} 29. Kd2 {[%clk
0:01:13.6]} 29... Nf6 {[%clk 0:01:06.8]} 30. c4 {[%clk 0:01:09]} 30... Nh7
{[%clk 0:00:51.8]} 31. cxb5 {[%clk 0:01:01.3]} 31... Rxc1 {[%clk 0:00:52.7]} 32.
Kxc1 {[%clk 0:01:01.9]} 32... axb5 {[%clk 0:00:53.1]} 33. Kd2 {[%clk 0:01:02.6]}
33... Ng5 {[%clk 0:00:53.4]} 34. Ke2 {[%clk 0:01:03.3]} 34... Kd7 {[%clk
0:00:53.7]} 35. a3 {[%clk 0:00:39.6]} 35... Kc6 {[%clk 0:00:53.3]} 36. Ng2
{[%clk 0:00:36.8]} 36... Nh3 {[%clk 0:00:46]} 37. Ke3 {[%clk 0:00:36.2]} 37...
d5 {[%clk 0:00:45.4]} 38. exd5+ {[%clk 0:00:34.4]} 38... exd5 {[%clk 0:00:46.3]}
39. Nh4 {[%clk 0:00:33.6]} 39... Ng5 {[%clk 0:00:33.5]} 40. Nf5 {[%clk
0:00:32.7]} 40... Ne6 {[%clk 0:00:34.2]} 41. Kd2 {[%clk 0:00:23.9]} 41... Kc5
{[%clk 0:00:30.5]} 42. Kd3 {[%clk 0:00:17.8]} 42... Kc6 {[%clk 0:00:28.5]} 43.
Ke3 {[%clk 0:00:14.2]} 43... Kc5 {[%clk 0:00:27.9]} 44. Kf2 {[%clk 0:00:08.6]}
44... Kc6 {[%clk 0:00:22]} 45. g5 {[%clk 0:00:07.1]} 45... Nxg5 {[%clk
0:00:10.2]} 46. Nxg7 {[%clk 0:00:07.6]} 46... Nf7 {[%clk 0:00:09.9]} 47. Nf5
{[%clk 0:00:08.1]} 47... Kd7 {[%clk 0:00:09.8]} 48. a4 {[%clk 0:00:06.3]} 48...
bxa4 {[%clk 0:00:09.7]} 49. bxa4 {[%clk 0:00:07.2]} 49... Kc6 {[%clk 0:00:10.2]}
50. Ke3 {[%clk 0:00:07.8]} 50... Kc5 {[%clk 0:00:10.3]} 51. f4 {[%clk
0:00:04.7]} 51... exf4+ {[%clk 0:00:06]} 52. Kxf4 {[%clk 0:00:05.2]} 52... Kb4
{[%clk 0:00:06.7]} 53. Ne7 {[%clk 0:00:03.9]} 53... d4 {[%clk 0:00:06.1]} 54.
Ke4 {[%clk 0:00:04.4]} 54... Kxa4 {[%clk 0:00:06]} 55. Kxd4 {[%clk 0:00:04.6]}
55... Kb5 {[%clk 0:00:04.2]} 56. Ke4 {[%clk 0:00:04.7]} 56... Kc5 {[%clk
0:00:04.2]} 57. Kf5 {[%clk 0:00:05]} 57... Kd6 {[%clk 0:00:04.8]} 58. Kf6 {[%clk
0:00:05]} 58... Ne5 {[%clk 0:00:04.4]} 59. Nf5+ {[%clk 0:00:05.7]} 59... Kd5
{[%clk 0:00:04.6]} 60. Nxh6 {[%clk 0:00:05.3]} 60... Ke4 {[%clk 0:00:03]} 61.
Kg5 {[%clk 0:00:03.6]} 61... Nf3+ {[%clk 0:00:02.4]} 62. Kg4 {[%clk 0:00:04.4]}
62... Ne5+ {[%clk 0:00:02.8]} 63. Kg5 {[%clk 0:00:04.8]} 63... Nf3+ {[%clk
0:00:03.3]} 64. Kf6 {[%clk 0:00:05.6]} 64... Ne5 {[%clk 0:00:03.9]} 65. Nf5
{[%clk 0:00:05.3]} 65... Ng4+ {[%clk 0:00:04.2]} 66. Kg5 {[%clk 0:00:05.6]}
66... Kf3 {[%clk 0:00:04.7]} 67. Nh4+ {[%clk 0:00:05.5]} 67... Kg3 {[%clk
0:00:04.4]} 68. Nf5+ {[%clk 0:00:06.2]} 68... Kh3 {[%clk 0:00:04.5]} 69. Ne7
{[%clk 0:00:06.1]} 69... Kg3 {[%clk 0:00:04.6]} 70. Ng6 {[%clk 0:00:05.9]} 70...
Kh3 {[%clk 0:00:05]} 71. Nf4+ {[%clk 0:00:05.7]} 71... Kg3 {[%clk 0:00:05.4]}
72. Ne2+ {[%clk 0:00:06.5]} 72... Kf3 {[%clk 0:00:05.7]} 73. Nd4+ {[%clk
0:00:06.1]} 73... Kg3 {[%clk 0:00:06.3]} 74. Nc6 {[%clk 0:00:06.6]} 74... Kh3
{[%clk 0:00:06.8]} 75. Nd8 {[%clk 0:00:04.6]} 75... Kg3 {[%clk 0:00:07.3]} 76.
Nf7 {[%clk 0:00:05.3]} 76... Kh3 {[%clk 0:00:07.8]} 77. Nh6 {[%clk 0:00:04.8]}
77... Ne5 {[%clk 0:00:07.1]} 78. Nf5 {[%clk 0:00:04.6]} 78... Ng4 {[%clk
0:00:07]} 79. Kg6 {[%clk 0:00:04.8]} 79... Ne5+ {[%clk 0:00:05.9]} 80. Kg7
{[%clk 0:00:04.4]} 80... Ng4 {[%clk 0:00:06.8]} 81. Ne3 {[%clk 0:00:04.1]} 81...
Kh4 {[%clk 0:00:06.9]} 82. Nxg4 {[%clk 0:00:03.5]} 82... Kxh5 {[%clk 0:00:06.8]}
1/2-1/2

[Event "Early-Titled-Tuesday-Blitz-May-07-2024"]
[Site "Chess.com"]
[Date "2024.05.07"]
[Round "1"]
[White "GiorgianBarbosa"]
[Black "lamomiajunior"]
[Result "1-0"]
[WhiteElo "2485"]
[BlackElo "2817"]
[TimeControl "180+1"]
[EndTime "8:09:21 PDT"]
[Termination "GiorgianBarbosa won by resignation"]

1. d4 {[%clk 0:03:00]} 1... Nf6 {[%clk 0:02:59.8]} 2. c4 {[%clk 0:02:57]} 2...
g6 {[%clk 0:03:00.1]} 3. Nc3 {[%clk 0:02:57.4]} 3... Bg7 {[%clk 0:03:00.4]} 4.
Nf3 {[%clk 0:02:56.3]} 4... O-O {[%clk 0:03:00.3]} 5. e4 {[%clk 0:02:56.6]} 5...
d6 {[%clk 0:03:01.2]} 6. Be2 {[%clk 0:02:56.8]} 6... e5 {[%clk 0:02:58.8]} 7.
O-O {[%clk 0:02:56.3]} 7... Nc6 {[%clk 0:02:58.1]} 8. d5 {[%clk 0:02:56.5]} 8...
Ne7 {[%clk 0:02:58.1]} 9. b4 {[%clk 0:02:57.2]} 9... Nh5 {[%clk 0:02:57.1]} 10.
c5 {[%clk 0:02:56.6]} 10... Nf4 {[%clk 0:02:51.4]} 11. Nd2 {[%clk 0:02:49.3]}
11... f5 {[%clk 0:02:49]} 12. Bf3 {[%clk 0:02:45.9]} 12... Nd3 {[%clk
0:02:41.4]} 13. Nc4 {[%clk 0:02:42]} 13... Nxc1 {[%clk 0:02:40.5]} 14. Rxc1
{[%clk 0:02:40.7]} 14... a6 {[%clk 0:02:34.5]} 15. a4 {[%clk 0:02:31.5]} 15...
fxe4 {[%clk 0:02:30.6]} 16. Bxe4 {[%clk 0:02:29.9]} 16... Nf5 {[%clk 0:02:26.7]}
17. cxd6 {[%clk 0:02:22.7]} 17... cxd6 {[%clk 0:02:20.4]} 18. a5 {[%clk
0:02:20.1]} 18... Bh6 {[%clk 0:02:09.1]} 19. Rb1 {[%clk 0:02:08.2]} 19... Qc7
{[%clk 0:02:02.9]} 20. Qd3 {[%clk 0:01:59.2]} 20... Nd4 {[%clk 0:01:57.6]} 21.
Na4 {[%clk 0:01:48.8]} 21... Bf5 {[%clk 0:01:53.1]} 22. Nab6 {[%clk 0:01:45]}
22... Rae8 {[%clk 0:01:52]} 23. Rfe1 {[%clk 0:01:36.5]} 23... Qe7 {[%clk
0:01:45.3]} 24. f3 {[%clk 0:01:30.2]} 24... Qf6 {[%clk 0:01:43.1]} 25. Rb2
{[%clk 0:01:27.5]} 25... Re7 {[%clk 0:01:39.3]} 26. Ne3 {[%clk 0:01:09]} 26...
Bf4 {[%clk 0:01:30.9]} 27. Bxf5 {[%clk 0:00:56.6]} 27... gxf5 {[%clk 0:01:28.5]}
28. Nc2 {[%clk 0:00:56.2]} 28... e4 {[%clk 0:01:18.6]} 29. fxe4 {[%clk
0:00:37.9]} 29... Ne2+ {[%clk 0:01:12.9]} 30. Rxe2 {[%clk 0:00:34.3]} 30... Qxb2
{[%clk 0:01:13.3]} 31. exf5 {[%clk 0:00:28.5]} 31... Be5 {[%clk 0:00:52]} 32. g3
{[%clk 0:00:26.4]} 32... Ref7 {[%clk 0:00:35]} 33. Nc4 {[%clk 0:00:25.7]} 33...
Qc3 {[%clk 0:00:35]} 34. Qxc3 {[%clk 0:00:23.7]} 34... Bxc3 {[%clk 0:00:34.9]}
35. g4 {[%clk 0:00:24.6]} 35... h5 {[%clk 0:00:29.1]} 36. Nxd6 {[%clk
0:00:21.6]} 36... Rd7 {[%clk 0:00:29.6]} 37. Ne4 {[%clk 0:00:21.8]} 37... Be5
{[%clk 0:00:28.8]} 38. Ne3 {[%clk 0:00:16.4]} 38... hxg4 {[%clk 0:00:26.6]} 39.
Nxg4 {[%clk 0:00:17.3]} 39... Bd4+ {[%clk 0:00:25.6]} 40. Kg2 {[%clk 0:00:17.2]}
40... Rg7 {[%clk 0:00:23.9]} 41. h3 {[%clk 0:00:16.8]} 41... Rxf5 {[%clk
0:00:22.8]} 42. d6 {[%clk 0:00:14.1]} 42... Rd7 {[%clk 0:00:09.5]} 43. Ng3
{[%clk 0:00:13.1]} 43... Rd5 {[%clk 0:00:07.6]} 44. Re6 {[%clk 0:00:11.4]} 44...
R5xd6 {[%clk 0:00:06.3]} 45. Re4 {[%clk 0:00:11.9]} 45... Bg7 {[%clk 0:00:05.7]}
46. Nf5 {[%clk 0:00:12.1]} 46... Rd2+ {[%clk 0:00:06.2]} 47. Kg3 {[%clk
0:00:12.5]} 47... R2d3+ {[%clk 0:00:06.9]} 48. Kh4 {[%clk 0:00:12.6]} 48... Rf7
{[%clk 0:00:05.5]} 49. Nfh6+ {[%clk 0:00:12]} 49... Bxh6 {[%clk 0:00:05.5]} 50.
Nxh6+ {[%clk 0:00:12.9]} 50... Kg7 {[%clk 0:00:06.4]} 51. Nxf7 {[%clk
0:00:13.5]} 51... Kxf7 {[%clk 0:00:07.3]} 52. Rc4 {[%clk 0:00:13.9]} 52... Rd7
{[%clk 0:00:06.9]} 53. Kg4 {[%clk 0:00:14.2]} 53... Kf6 {[%clk 0:00:06.7]} 54.
h4 {[%clk 0:00:15.1]} 54... Rg7+ {[%clk 0:00:07]} 55. Kf4 {[%clk 0:00:14.4]}
55... Ke6 {[%clk 0:00:07.2]} 56. Re4+ {[%clk 0:00:14.1]} 56... Kd5 {[%clk
0:00:07.7]} 57. Ke3 {[%clk 0:00:10.4]} 57... Rg3+ {[%clk 0:00:07.7]} 58. Kf2
{[%clk 0:00:10.4]} 58... Rh3 {[%clk 0:00:06.2]} 59. Rg4 {[%clk 0:00:10.9]} 59...
Rb3 {[%clk 0:00:05]} 60. Kg2 {[%clk 0:00:11.3]} 60... Re3 {[%clk 0:00:04.3]} 61.
h5 {[%clk 0:00:11.2]} 61... Re7 {[%clk 0:00:03.8]} 62. h6 {[%clk 0:00:11.1]}
62... Rh7 {[%clk 0:00:03.9]} 63. Rh4 {[%clk 0:00:11.7]} 63... Ke5 {[%clk
0:00:04.8]} 64. Kf3 {[%clk 0:00:12.2]} 64... Kf5 {[%clk 0:00:05.7]} 65. Ke3
{[%clk 0:00:12.6]} 65... Ke5 {[%clk 0:00:06.4]} 66. Rh5+ {[%clk 0:00:12.3]}
66... Kf6 {[%clk 0:00:06.9]} 67. Kd4 {[%clk 0:00:12.3]} 67... Kg6 {[%clk
0:00:05.1]} 68. Rh1 {[%clk 0:00:12.9]} 68... Rd7+ {[%clk 0:00:04.6]} 69. Kc5
{[%clk 0:00:13.2]} 69... Kh7 {[%clk 0:00:05.5]} 70. Kb6 {[%clk 0:00:13.2]} 70...
Rf7 {[%clk 0:00:05.7]} 71. Rc1 {[%clk 0:00:13.1]} 71... Kxh6 {[%clk 0:00:05.1]}
72. Rc7 {[%clk 0:00:13.1]} 72... Rf4 {[%clk 0:00:05.7]} 73. Kc5 {[%clk
0:00:11.2]} 73... Rf5+ {[%clk 0:00:05.1]} 74. Kc4 {[%clk 0:00:11]} 74... Rf4+
{[%clk 0:00:03]} 75. Kb3 {[%clk 0:00:10.7]} 75... Rf3+ {[%clk 0:00:03.4]} 76.
Ka4 {[%clk 0:00:10.9]} 76... Rf1 {[%clk 0:00:02.7]} 77. Rxb7 {[%clk 0:00:11.1]}
77... Ra1+ {[%clk 0:00:03.6]} 78. Kb3 {[%clk 0:00:11]} 78... Rb1+ {[%clk
0:00:04.5]} 79. Kc4 {[%clk 0:00:10.8]} 79... Rc1+ {[%clk 0:00:05.2]} 80. Kd5
{[%clk 0:00:11.4]} 80... Kg5 {[%clk 0:00:04.4]} 81. Rb6 {[%clk 0:00:11.4]} 81...
Rb1 {[%clk 0:00:05]} 82. Kc6 {[%clk 0:00:11.3]} 82... Rc1+ {[%clk 0:00:05.4]}
83. Kb7 {[%clk 0:00:11.7]} 83... Kf5 {[%clk 0:00:06.3]} 84. Kxa6 {[%clk
0:00:12.5]} 84... Ke5 {[%clk 0:00:07.2]} 85. b5 {[%clk 0:00:12.6]} 85... Kd5
{[%clk 0:00:07.9]} 86. Kb7 {[%clk 0:00:12.6]} 86... Kc5 {[%clk 0:00:07.1]} 87.
Rc6+ {[%clk 0:00:12.2]} 87... Kxb5 {[%clk 0:00:06.9]} 88. Rxc1 {[%clk
0:00:13.1]} 1-0

[Event "Early-Titled-Tuesday-Blitz-May-07-2024"]
[Site "Chess.com"]
[Date "2024.05.07"]
[Round "1"]
[White "stolencandy13"]
[Black "Rhesh29"]
[Result "1-0"]
[WhiteElo "2672"]
[BlackElo "2375"]
[TimeControl "180+1"]
[EndTime "8:09:26 PDT"]
[Termination "stolencandy13 won on time"]

1. d4 {[%clk 0:03:00.9]} 1... Nf6 {[%clk 0:02:57.3]} 2. Bf4 {[%clk 0:03:00.5]}
2... g6 {[%clk 0:02:55]} 3. Nc3 {[%clk 0:03:00.5]} 3... d5 {[%clk 0:02:49.9]} 4.
Nf3 {[%clk 0:02:59.2]} 4... Bg7 {[%clk 0:02:49.6]} 5. Qd2 {[%clk 0:02:56.5]}
5... c5 {[%clk 0:02:30.6]} 6. e3 {[%clk 0:02:54.3]} 6... O-O {[%clk 0:02:28]} 7.
O-O-O {[%clk 0:02:52.1]} 7... c4 {[%clk 0:02:24.9]} 8. Ne5 {[%clk 0:02:39.1]}
8... b5 {[%clk 0:02:18.5]} 9. Nxb5 {[%clk 0:02:24.1]} 9... Ne4 {[%clk 0:02:14]}
10. Qe1 {[%clk 0:02:21.7]} 10... Qb6 {[%clk 0:02:04.4]} 11. Nc3 {[%clk
0:02:16.6]} 11... Nxc3 {[%clk 0:01:38.6]} 12. Qxc3 {[%clk 0:02:17.5]} 12... Na6
{[%clk 0:01:27.8]} 13. h4 {[%clk 0:02:12.6]} 13... Rb8 {[%clk 0:01:20.1]} 14. h5
{[%clk 0:02:02.5]} 14... Nb4 {[%clk 0:01:18.5]} 15. Kb1 {[%clk 0:01:54]} 15...
g5 {[%clk 0:01:15]} 16. Bxg5 {[%clk 0:01:23.9]} 16... f6 {[%clk 0:01:14.6]} 17.
Nxc4 {[%clk 0:01:23.7]} 17... dxc4 {[%clk 0:01:01.8]} 18. Bxc4+ {[%clk
0:01:23.2]} 18... Be6 {[%clk 0:01:00.3]} 19. Bf4 {[%clk 0:01:08.2]} 19... Rfc8
{[%clk 0:00:48.8]} 20. Bxe6+ {[%clk 0:00:35.5]} 20... Qxe6 {[%clk 0:00:46.9]}
21. Qb3 {[%clk 0:00:36.1]} 21... Qxb3 {[%clk 0:00:43.9]} 22. axb3 {[%clk
0:00:35.7]} 22... e5 {[%clk 0:00:42.4]} 23. dxe5 {[%clk 0:00:32]} 23... fxe5
{[%clk 0:00:41.4]} 24. Bg3 {[%clk 0:00:28.6]} 24... Rxc2 {[%clk 0:00:33.9]} 25.
h6 {[%clk 0:00:29.1]} 25... Bf6 {[%clk 0:00:27.7]} 26. e4 {[%clk 0:00:28.7]}
26... Rc6 {[%clk 0:00:22.1]} 27. Rd7 {[%clk 0:00:26.8]} 27... Na6 {[%clk
0:00:20.1]} 28. Rhd1 {[%clk 0:00:24.8]} 28... Nc5 {[%clk 0:00:19.3]} 29. Rxa7
{[%clk 0:00:20.6]} 29... Nxe4 {[%clk 0:00:19.2]} 30. Bh2 {[%clk 0:00:16]} 30...
Rxb3 {[%clk 0:00:16.2]} 31. f3 {[%clk 0:00:15.5]} 31... Nc3+ {[%clk 0:00:15.4]}
32. Kc2 {[%clk 0:00:15]} 32... Nxd1+ {[%clk 0:00:15.1]} 33. Kxb3 {[%clk
0:00:15.3]} 33... Ne3 {[%clk 0:00:14.8]} 34. Ra8+ {[%clk 0:00:14.3]} 34... Kf7
{[%clk 0:00:14.6]} 35. Rb8 {[%clk 0:00:14.4]} 35... Nxg2 {[%clk 0:00:13.8]} 36.
Ka4 {[%clk 0:00:13.7]} 36... Kg6 {[%clk 0:00:12.7]} 37. b4 {[%clk 0:00:13.4]}
37... Ne3 {[%clk 0:00:11.7]} 38. b5 {[%clk 0:00:13.2]} 38... Rc4+ {[%clk
0:00:11.2]} 39. Kb3 {[%clk 0:00:12.8]} 39... Rc1 {[%clk 0:00:10.3]} 40. Bg3
{[%clk 0:00:10.7]} 40... Nd5 {[%clk 0:00:09.6]} 41. Kb2 {[%clk 0:00:08.8]} 41...
Rc4 {[%clk 0:00:08.3]} 42. Ka3 {[%clk 0:00:08.2]} 42... Be7+ {[%clk 0:00:07.5]}
43. Kb3 {[%clk 0:00:07.8]} 43... Rc3+ {[%clk 0:00:07.1]} 44. Kb2 {[%clk
0:00:07.9]} 44... Rxf3 {[%clk 0:00:05]} 45. Bxe5 {[%clk 0:00:08]} 45... Re3
{[%clk 0:00:04.6]} 46. Bd4 {[%clk 0:00:08.1]} 46... Rd3 {[%clk 0:00:03.4]} 47.
Ba7 {[%clk 0:00:08.4]} 47... Bf6+ {[%clk 0:00:03.2]} 48. Kc2 {[%clk 0:00:08]}
48... Rc3+ {[%clk 0:00:03.4]} 49. Kd2 {[%clk 0:00:08.7]} 49... Rb3 {[%clk
0:00:03.4]} 50. b6 {[%clk 0:00:08.2]} 50... Kf5 {[%clk 0:00:03.4]} 51. Rc8
{[%clk 0:00:08.7]} 51... Nxb6 {[%clk 0:00:03]} 52. Bxb6 {[%clk 0:00:08.5]} 52...
Rxb6 {[%clk 0:00:03.1]} 53. Rc5+ {[%clk 0:00:08.5]} 53... Kg6 {[%clk 0:00:03.5]}
54. Ke2 {[%clk 0:00:08.9]} 54... Kxh6 {[%clk 0:00:03.6]} 55. Kf3 {[%clk
0:00:09.6]} 55... Kg6 {[%clk 0:00:04.2]} 56. Kg4 {[%clk 0:00:10.2]} 56... h6
{[%clk 0:00:04.7]} 57. Rc4 {[%clk 0:00:09.9]} 57... Rb5 {[%clk 0:00:04.9]} 58.
Kh3 {[%clk 0:00:10.3]} 58... Ra5 {[%clk 0:00:05.4]} 59. Rg4+ {[%clk 0:00:10.2]}
59... Bg5 {[%clk 0:00:05.2]} 60. Rc4 {[%clk 0:00:11.1]} 60... Kh5 {[%clk
0:00:05.4]} 61. Rc3 {[%clk 0:00:10.3]} 61... Ra4 {[%clk 0:00:05.1]} 62. Rd3
{[%clk 0:00:10.4]} 62... Rb4 {[%clk 0:00:04.8]} 63. Rc3 {[%clk 0:00:09.7]} 63...
Kg6 {[%clk 0:00:05]} 64. Rd3 {[%clk 0:00:09.7]} 64... h5 {[%clk 0:00:05]} 65.
Rc3 {[%clk 0:00:09.9]} 65... Bf6 {[%clk 0:00:05.3]} 66. Rd3 {[%clk 0:00:10.1]}
66... Kf5 {[%clk 0:00:05.4]} 67. Rf3+ {[%clk 0:00:10.4]} 67... Kg6 {[%clk
0:00:03.7]} 68. Ra3 {[%clk 0:00:11.3]} 68... h4 {[%clk 0:00:03.1]} 69. Rd3
{[%clk 0:00:11.8]} 69... Kh5 {[%clk 0:00:02.7]} 70. Rf3 {[%clk 0:00:12.1]} 70...
Bg5 {[%clk 0:00:02.9]} 71. Rd3 {[%clk 0:00:12.2]} 71... Rb5 {[%clk 0:00:02]} 72.
Rc3 {[%clk 0:00:12.4]} 72... Ra5 {[%clk 0:00:02.2]} 73. Rd3 {[%clk 0:00:12.7]}
73... Bf4 {[%clk 0:00:02.2]} 74. Rb3 {[%clk 0:00:12.2]} 74... Ra1 {[%clk
0:00:00.4]} 75. Rb5+ {[%clk 0:00:11.9]} 75... Bg5 {[%clk 0:00:00.7]} 76. Rb3
{[%clk 0:00:11]} 76... Ra2 {[%clk 0:00:01.4]} 77. Rd3 {[%clk 0:00:09.7]} 77...
Ra1 {[%clk 0:00:02]} 78. Rc3 {[%clk 0:00:09.4]} 78... Ra4 {[%clk 0:00:02.2]} 79.
Rb3 {[%clk 0:00:09.8]} 79... Ra1 {[%clk 0:00:02.3]} 80. Rd3 {[%clk 0:00:10.3]}
80... Rh1+ {[%clk 0:00:01.4]} 81. Kg2 {[%clk 0:00:10.3]} 81... Re1 {[%clk
0:00:00.7]} 82. Kh3 {[%clk 0:00:10.5]} 82... Rh1+ {[%clk 0:00:00.7]} 83. Kg2
{[%clk 0:00:10.8]} 83... Re1 {[%clk 0:00:01.1]} 84. Kh3 {[%clk 0:00:11.5]} 84...
Re4 {[%clk 0:00:01.5]} 85. Rc3 {[%clk 0:00:11.4]} 85... Rg4 {[%clk 0:00:01.7]}
86. Rb3 {[%clk 0:00:10.9]} 1-0